[Event "*** Titled Tuesday Blitz"]
[Site "Chess.com"]
[Date "2020.04.07"]
[Round "2"]
[White "CookiesAndIceCream"]
[Black "BahadirOzen"]
[Result "0-1"]
[WhiteElo "2359"]
[BlackElo "2761"]
[TimeControl "180+1"]
[EndTime "13:19:15 PDT"]
[Termination "BahadirOzen won by checkmate"]

1. e4 {[%clk 0:03:00.9]} 1... e5 {[%clk 0:02:58.4]} 2. Nf3 {[%clk 0:03:00.5]}
2... Nc6 {[%clk 0:02:58.9]} 3. Nc3 {[%clk 0:03:00.3]} 3... Nf6 {[%clk
0:02:58.9]} 4. Bb5 {[%clk 0:03:00.5]} 4... Nd4 {[%clk 0:02:58.8]} 5. Bc4 {[%clk
0:03:00.1]} 5... Bc5 {[%clk 0:02:59]} 6. d3 {[%clk 0:02:59.6]} 6... d6 {[%clk
0:02:56.2]} 7. Na4 {[%clk 0:02:58.7]} 7... b5 {[%clk 0:02:44.1]} 8. Nxc5 {[%clk
0:02:01.4]} 8... bxc4 {[%clk 0:02:34.1]} 9. Na4 {[%clk 0:01:27]} 9... Bg4 {[%clk
0:02:21.8]} 10. Nc3 {[%clk 0:01:24.9]} 10... cxd3 {[%clk 0:01:36.6]} 11. Qxd3
{[%clk 0:01:21.1]} 11... Nxf3+ {[%clk 0:01:31.6]} 12. gxf3 {[%clk 0:01:20.1]}
12... Be6 {[%clk 0:01:32]} 13. O-O {[%clk 0:01:05.2]} 13... O-O {[%clk
0:01:29.5]} 14. Kh1 {[%clk 0:01:04.3]} 14... d5 {[%clk 0:01:26.2]} 15. Bg5
{[%clk 0:00:57.9]} 15... d4 {[%clk 0:01:21.4]} 16. Ne2 {[%clk 0:00:57.3]} 16...
h6 {[%clk 0:01:15.3]} 17. Bd2 {[%clk 0:00:55.1]} 17... c5 {[%clk 0:01:14.4]} 18.
b3 {[%clk 0:00:53.4]} 18... Rc8 {[%clk 0:01:12.6]} 19. c4 {[%clk 0:00:50.6]}
19... Nh5 {[%clk 0:00:43.6]} 20. f4 {[%clk 0:00:41.1]} 20... exf4 {[%clk
0:00:42.8]} 21. Nxf4 {[%clk 0:00:38.1]} 21... Nxf4 {[%clk 0:00:43.7]} 22. Bxf4
{[%clk 0:00:37.8]} 22... Qh4 {[%clk 0:00:42.9]} 23. Bg3 {[%clk 0:00:35.1]} 23...
Qh5 {[%clk 0:00:39.5]} 24. f4 {[%clk 0:00:31.2]} 24... f5 {[%clk 0:00:36.8]} 25.
e5 {[%clk 0:00:30.1]} 25... Bd7 {[%clk 0:00:36.9]} 26. Kg1 {[%clk 0:00:29]}
26... Bc6 {[%clk 0:00:32.1]} 27. Rf2 {[%clk 0:00:25.7]} 27... a5 {[%clk
0:00:27.8]} 28. Re1 {[%clk 0:00:24.5]} 28... Rfe8 {[%clk 0:00:21.7]} 29. Rfe2
{[%clk 0:00:23.6]} 29... Re6 {[%clk 0:00:21.1]} 30. Rf2 {[%clk 0:00:21.1]} 30...
Rce8 {[%clk 0:00:20.7]} 31. Qd2 {[%clk 0:00:21.2]} 31... Ra8 {[%clk 0:00:20.8]}
32. Qb2 {[%clk 0:00:19.6]} 32... Qh3 {[%clk 0:00:19.8]} 33. Qa3 {[%clk
0:00:18.1]} 33... Rg6 {[%clk 0:00:19.9]} 34. Rfe2 {[%clk 0:00:04.9]} 34... Rxg3+
{[%clk 0:00:13.8]} 35. hxg3 {[%clk 0:00:04.6]} 35... Qh1+ {[%clk 0:00:14.3]} 36.
Kf2 {[%clk 0:00:04.1]} 36... Qg2# {[%clk 0:00:15.2]} 0-1

[Event "*** Titled Tuesday Blitz"]
[Site "Chess.com"]
[Date "2020.04.07"]
[Round "2"]
[White "Bryakin_Mikhail"]
[Black "Rubinstein_Akiba"]
[Result "1-0"]
[WhiteElo "2749"]
[BlackElo "2355"]
[TimeControl "180+1"]
[EndTime "13:19:16 PDT"]
[Termination "Bryakin_Mikhail won by resignation"]

1. d4 {[%clk 0:03:00.9]} 1... Nf6 {[%clk 0:02:59.3]} 2. c4 {[%clk 0:03:01.3]}
2... e6 {[%clk 0:02:59.3]} 3. g3 {[%clk 0:03:01.4]} 3... d5 {[%clk 0:02:58.8]}
4. Bg2 {[%clk 0:03:02.1]} 4... Bb4+ {[%clk 0:02:58.3]} 5. Bd2 {[%clk 0:03:01.6]}
5... Bd6 {[%clk 0:02:58.5]} 6. Nf3 {[%clk 0:03:01.8]} 6... O-O {[%clk
0:02:58.2]} 7. Nc3 {[%clk 0:03:00.4]} 7... c6 {[%clk 0:02:58.4]} 8. Qc2 {[%clk
0:02:58.4]} 8... dxc4 {[%clk 0:02:56.8]} 9. e4 {[%clk 0:02:58.8]} 9... Bb4
{[%clk 0:02:55.3]} 10. O-O {[%clk 0:02:56.4]} 10... b5 {[%clk 0:02:54.6]} 11. e5
{[%clk 0:02:53.6]} 11... Bxc3 {[%clk 0:02:49.9]} 12. exf6 {[%clk 0:02:45.6]}
12... Bxd4 {[%clk 0:02:44.6]} 13. Nxd4 {[%clk 0:02:43.6]} 13... Qxd4 {[%clk
0:02:45.5]} 14. Bc3 {[%clk 0:02:43.4]} 14... Qd3 {[%clk 0:02:45.5]} 15. Qxd3
{[%clk 0:02:42]} 15... cxd3 {[%clk 0:02:46.4]} 16. fxg7 {[%clk 0:02:42.6]} 16...
Rd8 {[%clk 0:02:47]} 17. Rad1 {[%clk 0:02:42.1]} 17... Bb7 {[%clk 0:02:47]} 18.
Bf6 {[%clk 0:02:34.7]} 18... Rd7 {[%clk 0:02:42.9]} 19. Be4 {[%clk 0:02:30.9]}
19... d2 {[%clk 0:02:29.7]} 20. f4 {[%clk 0:02:22]} 20... Na6 {[%clk 0:02:25.4]}
21. Rf2 {[%clk 0:02:18.6]} 21... Nc5 {[%clk 0:02:19.7]} 22. Bb1 {[%clk
0:02:18.8]} 22... Rd5 {[%clk 0:02:14.7]} 23. Rfxd2 {[%clk 0:01:34.1]} 23... Nd7
{[%clk 0:02:08.3]} 24. Rxd5 {[%clk 0:01:21.2]} 24... cxd5 {[%clk 0:02:01.4]} 25.
Bd4 {[%clk 0:01:20.8]} 25... a6 {[%clk 0:01:51]} 26. g4 {[%clk 0:01:11.2]} 26...
f6 {[%clk 0:01:45.9]} 27. Re1 {[%clk 0:01:08.3]} 27... Re8 {[%clk 0:01:40.2]}
28. g5 {[%clk 0:01:08.6]} 28... Kxg7 {[%clk 0:01:19.4]} 29. Bf5 {[%clk
0:00:52.9]} 29... Kf7 {[%clk 0:00:59.8]} 30. Bxh7 {[%clk 0:00:50.2]} 30... e5
{[%clk 0:00:47.4]} 31. fxe5 {[%clk 0:00:48.8]} 31... fxe5 {[%clk 0:00:47.1]} 32.
Bf2 {[%clk 0:00:43.7]} 32... Kg7 {[%clk 0:00:46.6]} 33. Bf5 {[%clk 0:00:43.4]}
33... Nf8 {[%clk 0:00:46.1]} 34. h4 {[%clk 0:00:42.6]} 34... Ng6 {[%clk
0:00:41]} 35. h5 {[%clk 0:00:28.5]} 35... Nf4 {[%clk 0:00:40.5]} 36. h6+ {[%clk
0:00:28.9]} 36... Kg8 {[%clk 0:00:40.6]} 37. Kh2 {[%clk 0:00:25.1]} 37... e4
{[%clk 0:00:32.7]} 38. h7+ {[%clk 0:00:23.4]} 38... Kf7 {[%clk 0:00:31.5]} 39.
Bd4 {[%clk 0:00:23.3]} 39... Nd3 {[%clk 0:00:20.7]} 40. g6+ {[%clk 0:00:22.3]}
40... Ke7 {[%clk 0:00:20.8]} 41. Rg1 {[%clk 0:00:19.9]} 41... Kd6 {[%clk
0:00:19.4]} 42. g7 {[%clk 0:00:20]} 42... e3 {[%clk 0:00:18.4]} 43. g8=Q {[%clk
0:00:19.9]} 43... e2 {[%clk 0:00:18.7]} 44. Qxe8 {[%clk 0:00:19.6]} 44... e1=Q
{[%clk 0:00:18.9]} 45. Rxe1 {[%clk 0:00:19.8]} 45... Nxe1 {[%clk 0:00:18.3]} 46.
Qe6+ {[%clk 0:00:20]} 1-0

[Event "*** Titled Tuesday Blitz"]
[Site "Chess.com"]
[Date "2020.04.07"]
[Round "2"]
[White "diskeleven"]
[Black "SamuelGhimpu2003"]
[Result "1/2-1/2"]
[WhiteElo "2350"]
[BlackElo "2683"]
[TimeControl "180+1"]
[EndTime "13:19:18 PDT"]
[Termination "Game drawn by agreement"]

1. d4 {[%clk 0:03:00.9]} 1... Nf6 {[%clk 0:02:59.9]} 2. c4 {[%clk 0:03:01.5]}
2... g6 {[%clk 0:02:59.5]} 3. f3 {[%clk 0:03:01.9]} 3... e5 {[%clk 0:02:54.8]}
4. dxe5 {[%clk 0:02:53.7]} 4... Nh5 {[%clk 0:02:54.9]} 5. g3 {[%clk 0:02:49.7]}
5... Nc6 {[%clk 0:02:53.2]} 6. Nc3 {[%clk 0:02:35]} 6... Nxe5 {[%clk 0:02:33.2]}
7. e4 {[%clk 0:02:31.8]} 7... d6 {[%clk 0:02:19.5]} 8. Be2 {[%clk 0:02:30.4]}
8... Nf6 {[%clk 0:02:05.1]} 9. f4 {[%clk 0:02:23.2]} 9... Nc6 {[%clk 0:02:01.6]}
10. Nf3 {[%clk 0:02:21.2]} 10... Bg7 {[%clk 0:02:01.5]} 11. O-O {[%clk 0:02:21]}
11... O-O {[%clk 0:02:00.9]} 12. Kh1 {[%clk 0:02:20.2]} 12... Re8 {[%clk
0:01:56]} 13. Bd3 {[%clk 0:02:18.5]} 13... Bg4 {[%clk 0:01:54.1]} 14. Be3 {[%clk
0:02:10.1]} 14... Nb4 {[%clk 0:01:34.9]} 15. a3 {[%clk 0:01:47.9]} 15... Nxd3
{[%clk 0:01:32.9]} 16. Qxd3 {[%clk 0:01:48]} 16... Qe7 {[%clk 0:01:25.5]} 17.
Nd2 {[%clk 0:01:47.8]} 17... Rad8 {[%clk 0:01:14.3]} 18. Rae1 {[%clk 0:01:43.7]}
18... b6 {[%clk 0:01:09.9]} 19. Bd4 {[%clk 0:01:30.5]} 19... Qd7 {[%clk
0:01:04.5]} 20. Nd5 {[%clk 0:01:27.8]} 20... Nxd5 {[%clk 0:00:57.3]} 21. cxd5
{[%clk 0:01:27.8]} 21... Bxd4 {[%clk 0:00:50.2]} 22. Qxd4 {[%clk 0:01:27.9]}
22... c6 {[%clk 0:00:51.1]} 23. Kg1 {[%clk 0:01:23.2]} 23... cxd5 {[%clk
0:00:48]} 24. exd5 {[%clk 0:01:23.4]} 24... Bf5 {[%clk 0:00:44.3]} 25. Re3
{[%clk 0:00:57.6]} 25... Rxe3 {[%clk 0:00:43.1]} 26. Qxe3 {[%clk 0:00:57.8]}
26... Re8 {[%clk 0:00:44]} 27. Qf2 {[%clk 0:00:56.4]} 27... Qe7 {[%clk
0:00:40.5]} 28. Nf3 {[%clk 0:00:42]} 28... Qe2 {[%clk 0:00:20.7]} 29. Re1 {[%clk
0:00:35.8]} 29... Qxf2+ {[%clk 0:00:20.4]} 30. Kxf2 {[%clk 0:00:35.6]} 30...
Rxe1 {[%clk 0:00:21.3]} 31. Kxe1 {[%clk 0:00:32.3]} 31... Be4 {[%clk 0:00:22.2]}
32. Nd4 {[%clk 0:00:32.3]} 32... a6 {[%clk 0:00:22.1]} 33. Nc6 {[%clk
0:00:30.5]} 33... Kf8 {[%clk 0:00:22.3]} 34. Nb8 {[%clk 0:00:27.7]} 34... Bxd5
{[%clk 0:00:15.7]} 35. Nd7+ {[%clk 0:00:25.3]} 35... Ke7 {[%clk 0:00:16.6]} 36.
Nxb6 {[%clk 0:00:25.4]} 36... Bc6 {[%clk 0:00:17.5]} 37. Kd2 {[%clk 0:00:25.1]}
37... d5 {[%clk 0:00:16.3]} 38. Ke3 {[%clk 0:00:24.9]} 38... Kd6 {[%clk
0:00:16.3]} 39. Kd4 {[%clk 0:00:22.4]} 39... f6 {[%clk 0:00:16.3]} 1/2-1/2

[Event "*** Titled Tuesday Blitz"]
[Site "Chess.com"]
[Date "2020.04.07"]
[Round "2"]
[White "rynos0411"]
[Black "SGchess01"]
[Result "0-1"]
[WhiteElo "2365"]
[BlackElo "2804"]
[TimeControl "180+1"]
[EndTime "13:19:18 PDT"]
[Termination "SGchess01 won by resignation"]

1. c4 {[%clk 0:03:00.9]} 1... Nf6 {[%clk 0:02:58.2]} 2. Nc3 {[%clk 0:03:00.9]}
2... e5 {[%clk 0:02:56.1]} 3. g3 {[%clk 0:03:00.6]} 3... d5 {[%clk 0:02:55.7]}
4. cxd5 {[%clk 0:03:01.5]} 4... Nxd5 {[%clk 0:02:56.6]} 5. Bg2 {[%clk
0:03:01.8]} 5... Nb6 {[%clk 0:02:57.1]} 6. Nf3 {[%clk 0:03:00.9]} 6... Nc6
{[%clk 0:02:57.3]} 7. d3 {[%clk 0:03:01.2]} 7... Be7 {[%clk 0:02:57.6]} 8. O-O
{[%clk 0:03:01.2]} 8... O-O {[%clk 0:02:58.3]} 9. Be3 {[%clk 0:03:01.3]} 9...
Re8 {[%clk 0:02:54.7]} 10. Rc1 {[%clk 0:03:00.3]} 10... Bg4 {[%clk 0:02:54.6]}
11. Na4 {[%clk 0:02:50.8]} 11... Nd4 {[%clk 0:02:38.4]} 12. Nxd4 {[%clk
0:02:20]} 12... exd4 {[%clk 0:02:21.9]} 13. Bf4 {[%clk 0:02:18.7]} 13... c6
{[%clk 0:02:16.5]} 14. Nxb6 {[%clk 0:01:58.4]} 14... Qxb6 {[%clk 0:01:56.5]} 15.
h3 {[%clk 0:01:58.5]} 15... Bh5 {[%clk 0:01:53.4]} 16. g4 {[%clk 0:01:55.8]}
16... Bg6 {[%clk 0:01:53.4]} 17. Qc2 {[%clk 0:01:47.7]} 17... Bf8 {[%clk
0:01:51.2]} 18. a3 {[%clk 0:01:44.3]} 18... a5 {[%clk 0:01:49.3]} 19. Rfe1
{[%clk 0:01:36]} 19... Re6 {[%clk 0:01:48.5]} 20. Bf3 {[%clk 0:01:28]} 20...
Rae8 {[%clk 0:01:46.6]} 21. h4 {[%clk 0:01:27.4]} 21... h6 {[%clk 0:01:45.4]}
22. Rb1 {[%clk 0:01:02.2]} 22... Qd8 {[%clk 0:01:43.5]} 23. h5 {[%clk
0:00:55.5]} 23... Bh7 {[%clk 0:01:43.5]} 24. Kg2 {[%clk 0:00:55.4]} 24... Bd6
{[%clk 0:01:41.5]} 25. Bxd6 {[%clk 0:00:48.3]} 25... Rxd6 {[%clk 0:01:35.3]} 26.
b4 {[%clk 0:00:48]} 26... f5 {[%clk 0:01:16.3]} 27. bxa5 {[%clk 0:00:24.6]}
27... fxg4 {[%clk 0:01:15]} 28. Bxg4 {[%clk 0:00:24.9]} 28... Qg5 {[%clk
0:01:11.7]} 29. f3 {[%clk 0:00:25.3]} 29... Bf5 {[%clk 0:01:08.9]} 30. Qc4+
{[%clk 0:00:20.3]} 30... Kh8 {[%clk 0:01:02]} 31. Qf7 {[%clk 0:00:11.3]} 31...
Bxg4 {[%clk 0:00:36.5]} 32. Qxe8+ {[%clk 0:00:10.8]} 32... Kh7 {[%clk
0:00:37.1]} 33. fxg4 {[%clk 0:00:11.2]} 33... Qxg4+ {[%clk 0:00:37.7]} 34. Kh2
{[%clk 0:00:11.6]} 34... Re6 {[%clk 0:00:37.4]} 35. Qg6+ {[%clk 0:00:06.6]}
35... Rxg6 {[%clk 0:00:37.1]} 36. hxg6+ {[%clk 0:00:07.5]} 36... Qxg6 {[%clk
0:00:37.5]} 37. Rxb7 {[%clk 0:00:04.9]} 37... Qh5+ {[%clk 0:00:36.2]} 38. Kg2
{[%clk 0:00:05]} 38... Qg4+ {[%clk 0:00:36]} 39. Kf2 {[%clk 0:00:05.4]} 39...
Qh4+ {[%clk 0:00:35.7]} 40. Kf1 {[%clk 0:00:05.7]} 40... Qh3+ {[%clk 0:00:35.6]}
41. Kf2 {[%clk 0:00:05.6]} 41... Qf5+ {[%clk 0:00:35.4]} 42. Kg1 {[%clk
0:00:05.4]} 42... Qxa5 {[%clk 0:00:36.3]} 43. Reb1 {[%clk 0:00:03.5]} 43... Qxa3
{[%clk 0:00:36.1]} 44. R7b4 {[%clk 0:00:03.7]} 44... c5 {[%clk 0:00:35.4]} 45.
Rc4 {[%clk 0:00:04.1]} 45... Qa2 {[%clk 0:00:34.6]} 46. Rbc1 {[%clk 0:00:02.8]}
46... Qxe2 {[%clk 0:00:34.4]} 47. Rxc5 {[%clk 0:00:03.4]} 47... Qxd3 {[%clk
0:00:34.9]} 48. R5c2 {[%clk 0:00:03.6]} 48... Qe3+ {[%clk 0:00:35]} 49. Kf1
{[%clk 0:00:03.4]} 49... d3 {[%clk 0:00:35.9]} 50. Rc3 {[%clk 0:00:03.9]} 50...
Qe2+ {[%clk 0:00:35.3]} 51. Kg1 {[%clk 0:00:03.8]} 51... d2 {[%clk 0:00:36.2]}
0-1

[Event "*** Titled Tuesday Blitz"]
[Site "Chess.com"]
[Date "2020.04.07"]
[Round "2"]
[White "valeriocarnicelli"]
[Black "LyonBeast"]
[Result "0-1"]
[WhiteElo "2604"]
[BlackElo "3004"]
[TimeControl "180+1"]
[EndTime "13:19:19 PDT"]
[Termination "LyonBeast won by resignation"]

1. e4 {[%clk 0:02:57.4]} 1... e5 {[%clk 0:02:59.9]} 2. Nf3 {[%clk 0:02:42.9]}
2... Nc6 {[%clk 0:03:00.4]} 3. d4 {[%clk 0:02:43.1]} 3... exd4 {[%clk
0:02:59.5]} 4. Bc4 {[%clk 0:02:43.3]} 4... Nf6 {[%clk 0:02:54.9]} 5. e5 {[%clk
0:02:43.5]} 5... d5 {[%clk 0:02:53]} 6. Bb5 {[%clk 0:02:43.5]} 6... Ne4 {[%clk
0:02:52.9]} 7. Nxd4 {[%clk 0:02:43.4]} 7... Bd7 {[%clk 0:02:52]} 8. Bxc6 {[%clk
0:02:43.2]} 8... bxc6 {[%clk 0:02:52.9]} 9. O-O {[%clk 0:02:43.5]} 9... Be7
{[%clk 0:02:51.2]} 10. f3 {[%clk 0:02:42.5]} 10... Nc5 {[%clk 0:02:51.3]} 11. f4
{[%clk 0:02:43]} 11... f5 {[%clk 0:02:40.1]} 12. Nc3 {[%clk 0:02:22.8]} 12...
O-O {[%clk 0:02:36.2]} 13. Be3 {[%clk 0:02:18]} 13... Ne6 {[%clk 0:02:31.8]} 14.
Nxe6 {[%clk 0:02:13.9]} 14... Bxe6 {[%clk 0:02:32.7]} 15. Na4 {[%clk 0:02:14.3]}
15... Rb8 {[%clk 0:02:26.3]} 16. Nc5 {[%clk 0:02:09.9]} 16... Qc8 {[%clk
0:02:10.9]} 17. b3 {[%clk 0:02:08.6]} 17... Rd8 {[%clk 0:02:10.1]} 18. Qd4
{[%clk 0:02:06.7]} 18... Rb5 {[%clk 0:01:56.6]} 19. Nxe6 {[%clk 0:01:40.6]}
19... Qxe6 {[%clk 0:01:57.5]} 20. a4 {[%clk 0:01:35.1]} 20... c5 {[%clk
0:01:51]} 21. Qd2 {[%clk 0:01:31.5]} 21... Rb7 {[%clk 0:01:45.7]} 22. Rad1
{[%clk 0:01:29.1]} 22... c6 {[%clk 0:01:42.1]} 23. Kh1 {[%clk 0:01:16.2]} 23...
h6 {[%clk 0:01:30.6]} 24. h3 {[%clk 0:01:11.2]} 24... Kh7 {[%clk 0:01:27.1]} 25.
Qd3 {[%clk 0:01:07.6]} 25... c4 {[%clk 0:01:17.5]} 26. bxc4 {[%clk 0:01:04.2]}
26... dxc4 {[%clk 0:01:18.4]} 27. Qe2 {[%clk 0:01:04.6]} 27... Rbd7 {[%clk
0:01:10]} 28. Qf3 {[%clk 0:00:51.5]} 28... a6 {[%clk 0:01:04.9]} 29. Bb6 {[%clk
0:00:45.6]} 29... Rxd1 {[%clk 0:01:03.1]} 30. Rxd1 {[%clk 0:00:46]} 30... Rb8
{[%clk 0:00:51.4]} 31. Bc7 {[%clk 0:00:45.9]} 31... Rb2 {[%clk 0:00:48.4]} 32.
Bd6 {[%clk 0:00:46.1]} 32... Rxc2 {[%clk 0:00:47.2]} 33. Qxc6 {[%clk 0:00:45.7]}
33... c3 {[%clk 0:00:44.9]} 34. Qc5 {[%clk 0:00:39.5]} 34... Qg6 {[%clk
0:00:43.4]} 35. Qd5 {[%clk 0:00:34.1]} 35... Bh4 {[%clk 0:00:38]} 36. e6 {[%clk
0:00:30.6]} 36... Re2 {[%clk 0:00:38]} 37. Be5 {[%clk 0:00:23.3]} 37... c2
{[%clk 0:00:37.4]} 38. Rc1 {[%clk 0:00:22.4]} 38... Qg3 {[%clk 0:00:33.5]} 39.
Bc3 {[%clk 0:00:14.9]} 39... Qxc3 {[%clk 0:00:31.9]} 40. Qxf5+ {[%clk
0:00:14.7]} 40... g6 {[%clk 0:00:32.4]} 41. Qf7+ {[%clk 0:00:13.9]} 41... Qg7
{[%clk 0:00:32.9]} 42. Qe8 {[%clk 0:00:08.4]} 42... Bg3 {[%clk 0:00:30]} 43. Qc6
{[%clk 0:00:07.1]} 43... Bxf4 {[%clk 0:00:29.7]} 0-1

[Event "*** Titled Tuesday Blitz"]
[Site "Chess.com"]
[Date "2020.04.07"]
[Round "2"]
[White "Anton_Demchenko"]
[Black "Firegrizzly"]
[Result "1-0"]
[WhiteElo "2957"]
[BlackElo "2598"]
[TimeControl "180+1"]
[EndTime "13:19:19 PDT"]
[Termination "Anton_Demchenko won on time"]

1. d4 {[%clk 0:03:00.9]} 1... Nf6 {[%clk 0:02:58.9]} 2. Nf3 {[%clk 0:02:58.9]}
2... e6 {[%clk 0:02:58.4]} 3. Bf4 {[%clk 0:02:59]} 3... b6 {[%clk 0:02:56.5]} 4.
e3 {[%clk 0:02:58.9]} 4... Bb7 {[%clk 0:02:56.7]} 5. Bd3 {[%clk 0:02:59.5]} 5...
Be7 {[%clk 0:02:56.9]} 6. h3 {[%clk 0:02:58.5]} 6... O-O {[%clk 0:02:55.2]} 7.
Nbd2 {[%clk 0:02:58.2]} 7... c5 {[%clk 0:02:54.8]} 8. c3 {[%clk 0:02:58.5]} 8...
d6 {[%clk 0:02:39.4]} 9. Qe2 {[%clk 0:02:54.8]} 9... Re8 {[%clk 0:02:25.9]} 10.
e4 {[%clk 0:02:39.3]} 10... cxd4 {[%clk 0:02:23.1]} 11. cxd4 {[%clk 0:02:39.6]}
11... Nc6 {[%clk 0:02:07.5]} 12. O-O {[%clk 0:02:34.3]} 12... a6 {[%clk
0:01:44.4]} 13. Rad1 {[%clk 0:02:25.7]} 13... d5 {[%clk 0:01:41.6]} 14. e5
{[%clk 0:02:22.3]} 14... Nd7 {[%clk 0:01:40.3]} 15. Rfe1 {[%clk 0:02:07.2]}
15... b5 {[%clk 0:01:39.7]} 16. Nf1 {[%clk 0:02:03.9]} 16... Nb6 {[%clk
0:01:34.1]} 17. b3 {[%clk 0:01:57.8]} 17... Nd7 {[%clk 0:01:33.4]} 18. Ng3
{[%clk 0:01:55.9]} 18... Nf8 {[%clk 0:01:32]} 19. Nh5 {[%clk 0:01:38.7]} 19...
Rc8 {[%clk 0:01:29.9]} 20. Bb1 {[%clk 0:01:32.7]} 20... Ng6 {[%clk 0:01:28]} 21.
Be3 {[%clk 0:01:29.5]} 21... Bb4 {[%clk 0:01:25.2]} 22. Rf1 {[%clk 0:01:27.6]}
22... Be7 {[%clk 0:01:24.8]} 23. Ne1 {[%clk 0:01:17.7]} 23... f5 {[%clk
0:01:01]} 24. g4 {[%clk 0:01:09.8]} 24... f4 {[%clk 0:00:45.2]} 25. Nxf4 {[%clk
0:01:09.3]} 25... Nxf4 {[%clk 0:00:43.3]} 26. Bxf4 {[%clk 0:01:10.2]} 26... Rf8
{[%clk 0:00:42.2]} 27. Be3 {[%clk 0:01:07.5]} 27... Bb4 {[%clk 0:00:31]} 28. f4
{[%clk 0:01:04.5]} 28... Qh4 {[%clk 0:00:29]} 29. Kh2 {[%clk 0:00:58.3]} 29...
Bxe1 {[%clk 0:00:26.8]} 30. Qxe1 {[%clk 0:00:56.8]} 30... Qe7 {[%clk 0:00:23.5]}
31. f5 {[%clk 0:00:41.5]} 31... Ba8 {[%clk 0:00:20.2]} 32. Qg3 {[%clk
0:00:34.1]} 32... Nb4 {[%clk 0:00:18]} 33. Rf2 {[%clk 0:00:21]} 33... Rc3 {[%clk
0:00:17.2]} 34. Rdf1 {[%clk 0:00:20.9]} 34... Nc6 {[%clk 0:00:10.5]} 35. f6
{[%clk 0:00:19.5]} 35... Qd8 {[%clk 0:00:03.1]} 36. fxg7 {[%clk 0:00:19.8]}
36... Rxf2+ {[%clk 0:00:01.8]} 37. Qxf2 {[%clk 0:00:20.7]} 1-0

[Event "*** Titled Tuesday Blitz"]
[Site "Chess.com"]
[Date "2020.04.07"]
[Round "2"]
[White "Shahinyan_ChessMood"]
[Black "Chessterra87"]
[Result "1-0"]
[WhiteElo "2660"]
[BlackElo "2295"]
[TimeControl "180+1"]
[EndTime "13:19:19 PDT"]
[Termination "Shahinyan_ChessMood won by checkmate"]

1. e4 {[%clk 0:03:00.9]} 1... c5 {[%clk 0:02:59.4]} 2. Nc3 {[%clk 0:02:58.8]}
2... e6 {[%clk 0:02:58.1]} 3. g3 {[%clk 0:02:58]} 3... d5 {[%clk 0:02:56.9]} 4.
d3 {[%clk 0:02:58.5]} 4... Nc6 {[%clk 0:02:49.5]} 5. exd5 {[%clk 0:02:56.6]}
5... exd5 {[%clk 0:02:49.5]} 6. Bg2 {[%clk 0:02:57.5]} 6... Nf6 {[%clk 0:02:45]}
7. Bg5 {[%clk 0:02:57.5]} 7... Be6 {[%clk 0:02:43.4]} 8. Nge2 {[%clk 0:02:57.5]}
8... d4 {[%clk 0:02:36]} 9. Ne4 {[%clk 0:02:52.9]} 9... Qa5+ {[%clk 0:02:23.4]}
10. Bd2 {[%clk 0:02:52.4]} 10... Qd8 {[%clk 0:02:20.1]} 11. O-O {[%clk
0:02:49.7]} 11... Nxe4 {[%clk 0:02:17.8]} 12. dxe4 {[%clk 0:02:49.8]} 12... Be7
{[%clk 0:02:16.7]} 13. f4 {[%clk 0:02:50.1]} 13... Bc4 {[%clk 0:02:06.1]} 14. b3
{[%clk 0:02:46.1]} 14... Ba6 {[%clk 0:02:06]} 15. Qe1 {[%clk 0:02:42.5]} 15...
d3 {[%clk 0:01:58.1]} 16. cxd3 {[%clk 0:02:35.6]} 16... Qxd3 {[%clk 0:01:56.9]}
17. Rf3 {[%clk 0:02:28.6]} 17... Qxe2 {[%clk 0:01:52.7]} 18. Qc1 {[%clk
0:02:11.3]} 18... Rd8 {[%clk 0:01:48.4]} 19. Bc3 {[%clk 0:02:07.3]} 19... Nd4
{[%clk 0:01:18.8]} 20. Rf2 {[%clk 0:02:00.6]} 20... Qb5 {[%clk 0:01:16.1]} 21.
Qb2 {[%clk 0:02:00.9]} 21... O-O {[%clk 0:01:14.8]} 22. e5 {[%clk 0:02:01.3]}
22... Ne2+ {[%clk 0:01:07.1]} 23. Kh1 {[%clk 0:01:54.6]} 23... Nxc3 {[%clk
0:01:06.7]} 24. Qxc3 {[%clk 0:01:55.5]} 24... Qd3 {[%clk 0:01:06.9]} 25. Qb2
{[%clk 0:01:54.7]} 25... b6 {[%clk 0:01:06.2]} 26. Re1 {[%clk 0:01:53.1]} 26...
c4 {[%clk 0:01:04.5]} 27. bxc4 {[%clk 0:01:50.8]} 27... Bxc4 {[%clk 0:01:05.4]}
28. f5 {[%clk 0:01:50.8]} 28... Bd5 {[%clk 0:01:05.3]} 29. f6 {[%clk 0:01:47.5]}
29... Bxg2+ {[%clk 0:01:05.1]} 30. Rxg2 {[%clk 0:01:43]} 30... Bc5 {[%clk
0:00:58.7]} 31. Qc1 {[%clk 0:01:32.1]} 31... Qg6 {[%clk 0:00:55.2]} 32. fxg7
{[%clk 0:01:13.2]} 32... Rfe8 {[%clk 0:00:55.2]} 33. Qf4 {[%clk 0:01:08.7]}
33... Rd4 {[%clk 0:00:52.8]} 34. Qf3 {[%clk 0:01:08.8]} 34... Rd3 {[%clk
0:00:45.4]} 35. Qb7 {[%clk 0:01:05.6]} 35... Rdd8 {[%clk 0:00:41.4]} 36. Rge2
{[%clk 0:01:03.8]} 36... Qe6 {[%clk 0:00:39.7]} 37. Qf3 {[%clk 0:01:01.9]} 37...
Qd5 {[%clk 0:00:40.1]} 38. Re4 {[%clk 0:01:02.3]} 38... Re6 {[%clk 0:00:38.3]}
39. Qf5 {[%clk 0:00:49]} 39... Rde8 {[%clk 0:00:36.9]} 40. Rf1 {[%clk
0:00:48.3]} 40... R8e7 {[%clk 0:00:37.3]} 41. Rf3 {[%clk 0:00:48.6]} 41... Qd1+
{[%clk 0:00:37]} 42. Kg2 {[%clk 0:00:48.9]} 42... Qc2+ {[%clk 0:00:36.5]} 43.
Kh3 {[%clk 0:00:48]} 43... Qc1 {[%clk 0:00:34.3]} 44. Rh4 {[%clk 0:00:45.5]}
44... h6 {[%clk 0:00:28.2]} 45. Rg4 {[%clk 0:00:39.1]} 45... Qd2 {[%clk
0:00:16]} 46. Qh7+ {[%clk 0:00:38.6]} 46... Kxh7 {[%clk 0:00:14]} 47. g8=Q#
{[%clk 0:00:39.5]} 1-0